Cogmind - Beta 13 *** ADVENTURER MODE // 2024.05.28 @ 17:46:21 Player: oatmeal Result: Destroyed by H-55 Commando with Assault Rifle Performance ------------- Evolutions (1) 500 Regions Visited (5) 1000 Robots Destroyed (108) 540 Value Destroyed (2564) 2564 Prototype IDs (29) 580 Alien Tech Used (0) 0 Bonus (423) 423 TOTAL SCORE: 5607 Bonus ------- High Alert Combat Kills 32 Follower Combat Kills 91 Aligned with FarCom 300 Cogmind --------- Core Integrity 0/400 Matter 146/300 Energy 187/265 System Corruption 1% Temperature Hot (296) Movement Treading (560) Ox5 Location -9/Exiles Parts ------- > --- POWER (1) -------- Reinforced Ion Engine > --- PROPULSION (2) --- Light Treads Wheel > --- UTILITY (4) ------ Huge Storage Unit Advanced Targeting Computer Advanced Targeting Computer Core Shielding > --- WEAPON (2) ------- YOLO Cannon > --- INVENTORY (25) --- Improved Ion Engine Light Treads Flight Unit Flight Unit Flight Unit VTOL Module Large Matter Pod (150) Structural Scanner Sensor Array Signal Interpreter Improved Terrain Scanner Seismic Detector Advanced Targeting Computer ECM Suite Hacking Suite Guided Plasma Cannon Field Lobotomy Kit (5) Makeshift Hammer Peak State ------------ > --- POWER ------------ Cooled Ion Engine > --- PROPULSION ------- Light Treads Wheel > --- UTILITY ---------- Huge Storage Unit Advanced Targeting Computer Advanced Targeting Computer > --- WEAPON ----------- YOLO Cannon > --- INVENTORY -------- Improved Ion Engine Reinforced Ion Engine Light Treads Wheel Flight Unit Flight Unit Flight Unit VTOL Module Large Matter Pod Structural Scanner Sensor Array Signal Interpreter Improved Terrain Scanner Seismic Detector Advanced Targeting Computer ECM Suite Core Shielding Hacking Suite Guided Plasma Cannon Field Lobotomy Kit Makeshift Hammer [Rating: 36] Favorites ----------- Power Cooled Ion Engine Engine Cooled Ion Engine Power Core Light Nuclear Core Propulsion Light Treads Treads Light Treads Wheel Wheel Utility Huge Storage Unit Device Heat Sink Storage Huge Storage Unit Processor Advanced Targeting Computer Protection Medium Armor Plating Weapon Beam Cannon Energy Gun Medium Laser Energy Cannon Beam Cannon Ballistic Gun Autogun Ballistic Cannon Light Cannon Impact Weapon Makeshift Hammer Build | -11 -10 -10 -9 -9 -9 ------- Run | Yrd Mat Min Mat Min Exi Slots Evolved 2 | . . . 2 . . Power . | . . . . . . Propulsion . | . . . . . . Utility 2 | . . . 2 . . Weapon . | . . . . . . Parts Attached 69 | 10 13 1 34 3 8 Power 7 | 1 2 . 3 . 1 Engine 6 | 1 2 . 2 . 1 Core 1 | . . . 1 . . Reactor . | . . . . . . Propulsion 20 | 3 4 . 8 2 3 Treads 9 | 1 1 . 4 1 2 Leg . | . . . . . . Wheel 11 | 2 3 . 4 1 1 Hover . | . . . . . . Flight . | . . . . . . Utility 25 | 3 4 . 15 1 2 Device 11 | 2 1 . 7 . 1 Storage 3 | 1 2 . . . . Processor 3 | . . . 3 . . Hackware . | . . . . . . Protection 8 | . 1 . 5 1 1 Artifact . | . . . . . . Weapon 17 | 3 3 1 8 . 2 Energy Gun 4 | 3 . . 1 . . Energy Cannon 4 | . 1 . 1 . 2 Ballistic Gun 7 | . 1 . 6 . . Ballistic Cannon 1 | . 1 . . . . Launcher . | . . . . . . Special Weapon . | . . . . . . Impact Weapon 1 | . . 1 . . . Slashing Weapon . | . . . . . . Piercing Weapon . | . . . . . . Special Melee Weapon . | . . . . . . Unidentified Prototypes 1 | . 1 . . . . Parts Lost 15 | . 1 . 7 . 7 Power 3 | . . . 2 . 1 Propulsion 5 | . 1 . 2 . 2 Utility 3 | . . . 1 . 2 Weapon 4 | . . . 2 . 2 Highest Loss Streak 7 | . 1 . 2 . 7 To Critical Strikes . | . . . . . . Average Slot Usage (%) 99 | . 99 100 99 100 97 Engine 12 | . 14 14 9 11 10 Treads 12 | . 14 14 11 11 11 Wheel 12 | . 14 14 10 11 10 Device 12 | . 13 14 14 . . Storage 12 | . 14 14 11 11 11 Processor 8 | . . . 14 22 22 Protection 2 | . . . 3 11 10 Energy Gun 1 | . 6 . . . . Energy Cannon 8 | . 10 14 5 . 1 Ballistic Gun 8 | . 2 . 15 22 18 Ballistic Cannon 5 | . 8 11 . . . Naked Turns . | . . . . . . Heaviest Build 109 | 15 95 95 101 101 109 Greatest Support 26 | 26 20 10 20 20 10 Greatest Overweight (x) 10 | 4 9 9 10 10 10 Average Overweight (x) 7 | . 5 9 9 9 9 Largest Inventory Capacity 25 | 8 25 25 25 25 25 Average Capacity 23 | 7 20 25 25 25 25 Most Carried 25 | 7 25 25 25 25 25 Average Carried 22 | 5 15 24 24 25 24 Final Capacity 25 | 8 25 25 25 25 25 Final Carried 25 | 7 25 25 25 25 18 Class Distribution -------------------- 87% | Mutant 12% | Scavenger-Mutant Dominant Class ---------------- Mutant | -10/Materials Mutant | -10/Mines Mutant | -9/Materials Mutant | -9/Mines Mutant | -9/Exiles Resources | -11 -10 -10 -9 -9 -9 ----------- Run | Yrd Mat Min Mat Min Exi Matter Collected 1622 | 243 292 38 917 132 . Remotely . | . . . . . . Salvage Created 3269 | 140 724 121 1518 200 566 Parts 234 | 11 53 9 112 24 25 Haulers Intercepted 2 | . 2 . . . . Recyclers Shooed 2 | . 2 . . . . Parts Field Recycled . | . . . . . . Retrieved Matter . | . . . . . . Parts Self-Destructed . | . . . . . . Prevented . | . . . . . . Kills | -11 -10 -10 -9 -9 -9 ------- Run | Yrd Mat Min Mat Min Exi Combat Hostiles Destroyed 75 | . 14 5 29 10 17 Guns 38 | . 5 . 20 10 3 Cannons 25 | . 7 5 8 . 5 AOE 8 | . 2 . . . 6 Classes Destroyed 15 | 2 6 2 3 . 2 Worker 3 | . 2 . 1 . . Builder 7 | . 3 2 2 . . Tunneler 8 | 3 2 1 2 . . Hauler 2 | . 2 . . . . Recycler 4 | 1 2 . 1 . . Operator 2 | . . . 2 . . Watcher 8 | . 3 . 5 . . Swarmer 26 | . 9 3 6 8 . Grunt 28 | . 5 . 16 2 5 Brawler 3 | . . . 1 . 2 Sentry 6 | . . . 6 . . Demolisher 1 | . . 1 . . . Hunter 8 | . . . . . 8 Programmer 2 | . . . . . 2 Assembled 1 | . . 1 . . . Best Kill Streak 15 | 4 6 3 8 4 15 Combat Bots Only 15 | . 5 3 8 4 15 Max Kills in Single Turn 4 | 1 4 1 2 2 3 Gunslinging 1 | . . . . 1 . Exploded 3 | . 2 . . . 3 Melee . | . . . . . . Uniques/NPCs Destroyed . | . . . . . . Combat | -11 -10 -10 -9 -9 -9 -------- Run | Yrd Mat Min Mat Min Exi Hostile Shots Fired 405 | . 64 8 179 29 125 Missed 107 | . 21 1 48 8 29 Damage Taken 3104 | . 394 68 1441 140 1061 Core 455 | . 48 4 237 31 135 Absorbed by Shields . | . . . . . . Redirected to Shielding 2 | . . . . . 2 Ignored by Resistances 920 | . 121 22 421 45 311 Regen/Repaired (Parts) 250 | . 139 . 111 . . Core Remaining (%) 89 | 100 . 79 . . . Volleys Fired 207 | 7 56 8 93 15 28 Largest 2 | 2 2 2 2 2 2 Hottest 120 | 100 100 95 120 46 120 Shots Fired 393 | 14 111 16 186 30 36 Gun 254 | 14 57 . 132 30 21 Cannon 139 | . 54 16 54 . 15 Launcher . | . . . . . . Special . | . . . . . . Kinetic 225 | . 41 8 125 30 21 Thermal 161 | 14 70 8 54 . 15 Explosive . | . . . . . . Electromagnetic 7 | . . . 7 . . Robot Hit Streak 36 | 8 16 17 30 31 36 Robot Miss Streak 3 | 2 3 . 2 2 . Penetration Max . | . . . . . . Secondary Targets 9 | . . . 5 3 1 Max Gunslinging Chain 1 | . . . 1 1 1 Shots Hit Robots 305 | 9 79 12 149 23 33 Core Hits 126 | 5 28 8 57 11 17 Critical Kills 4 | . . . 1 . 3 Critical Parts Destroyed . | . . . . . . Critical Strikes 12 | . 8 . 1 . 3 Burn 8 | . 8 . . . . Meltdown 3 | . . . . . 3 Destroy 1 | . . . 1 . . Melee Attacks 22 | . . 22 . . . Impact 22 | . . 22 . . . Slashing . | . . . . . . Piercing . | . . . . . . Sneak Attacks 2 | . . 2 . . . Combat Hostiles . | . . . . . . Follow-up Attacks . | . . . . . . Damage Inflicted 7283 | 113 1589 389 2538 375 2279 Guns 2884 | 113 435 . 1649 375 312 Cannons 3026 | . 766 198 889 . 1173 Explosions 1182 | . 388 . . . 794 Melee 186 | . . 186 . . . Ramming 5 | . . 5 . . . Kinetic 2710 | . 400 54 1569 375 312 Thermal 4247 | 113 1134 144 889 . 1967 Explosive 55 | . 55 . . . . Electromagnetic 80 | . . . 80 . . Impact 186 | . . 186 . . . Slashing . | . . . . . . Piercing . | . . . . . . Highest Corruption 1 | . . . . . 1 Average Corruption 1 | . . . . . 1 Corruption Purged . | . . . . . . Corruption Blocked . | . . . . . . Effects 2 | . . . . . 2 Matter Fused 1 | . . . . . 1 Heat Flow Errors 1 | . . . . . 1 Overload Shots . | . . . . . . Overflow Damage 333 | . 88 78 . . 167 Projectiles 150 | . 5 . . . 145 Explosions 105 | . 83 . . . 22 Melee 78 | . . 78 . . . Knockbacks 7 | . 4 3 . . . Impact 1 | . . 1 . . . Kinetic 6 | . 4 2 . . . Secondary . | . . . . . . Self-Inflicted Damage 100 | . 98 2 . . . Shots 2 | . 2 . . . . Rammed 1 | . . 1 . . . Targets Rammed 1 | . . 1 . . . Kicked . | . . . . . . Crushed . | . . . . . . Highest Temperature 380 | 156 380 30 369 16 296 Average Temperature 90 | 73 91 29 178 4 61 Received Heat Transfer 1029 | . 90 . 744 33 162 Effects 3 | . 2 . 1 . . Energy Bleed 1 | . 1 . . . . Interference 1 | . . . 1 . . Short Circuit 1 | . 1 . . . . Siege Activations . | . . . . . . Robots Corrupted . | . . . . . . Combat Hostiles . | . . . . . . Parts Fried 1 | . . 1 . . . Impact Corruptions 3 | . . 3 . . . Robots Melted 5 | . 1 . 1 . 3 Combat Hostiles 4 | . . . 1 . 3 Parts Melted 13 | 2 3 . 2 . 6 Heat Transferred 7072 | 333 2753 296 1850 . 1840 Parts Sabotaged . | . . . . . . Parts Stolen . | . . . . . . Parts Stripped . | . . . . . . Power Chain Reactions . | . . . . . . Alert | -11 -10 -10 -9 -9 -9 ------- Run | Yrd Mat Min Mat Min Exi Peak Influence 529 | 20 529 75 326 270 . Initial 25 | . 11 . 7 25 . Average 106 | 7 243 12 85 178 . Maximum Alert Level 2 | . 2 . 1 1 . Low Security (%) 81 | 100 48 100 93 39 . Level 1 11 | . 23 . 6 60 . Level 2 6 | . 27 . . . . Level 3 . | . . . . . . Level 4 . | . . . . . . Level 5 . | . . . . . . High Security . | . . . . . . Max Security . | . . . . . . Squads Dispatched 5 | . 1 . 4 . . Investigation 3 | . 1 . 2 . . Extermination . | . . . . . . Reinforcement 2 | . . . 2 . . Assault . | . . . . . . Garrison . | . . . . . . Intercept . | . . . . . . Searches Triggered . | . . . . . . Construction Impeded . | . . . . . . Haulers Reinforced . | . . . . . . Active Scanning Responses . | . . . . . . Cargo Convoy Interrupts . | . . . . . . Stealth | -11 -10 -10 -9 -9 -9 --------- Run | Yrd Mat Min Mat Min Exi Distress Signals 2 | . 1 . 1 . . Communications Jammed . | . . . . . . Distress Signals . | . . . . . . Times Spotted 107 | . 22 5 47 10 23 Peak Tracking Total 7 | . 6 2 7 4 6 Tactical Retreats 2 | . 1 . 1 . . Traps | -11 -10 -10 -9 -9 -9 ------- Run | Yrd Mat Min Mat Min Exi Traps Triggered 2 | . 1 . 1 . . Indirectly . | . . . . . . Trap Hack Attempts . | . . . . . . Triggered . | . . . . . . Disarmed . | . . . . . . Reprogrammed . | . . . . . . Reused . | . . . . . . Traps Extracted . | . . . . . . Installed . | . . . . . . Triggered . | . . . . . . Machines | -11 -10 -10 -9 -9 -9 ---------- Run | Yrd Mat Min Mat Min Exi Machines Disabled 5 | . 4 . . . 1 Max in Single Turn 4 | . 4 . . . 1 Machines Repaired . | . . . . . . Machines Dismantled . | . . . . . . Machines Sabotaged . | . . . . . . Overloaded Fab Kills . | . . . . . . Hacking | -11 -10 -10 -9 -9 -9 --------- Run | Yrd Mat Min Mat Min Exi Machines Accessed 14 | . 3 1 9 . 1 Terminals 9 | . 2 1 6 . . Fabricators . | . . . . . . Repair Stations 2 | . 1 . 1 . . Recycling Units 1 | . . . 1 . . Scanalyzers 1 | . . . 1 . . Garrison Access . | . . . . . . Total Hacks 39 | . 10 2 26 . 1 Successful 24 | . 4 1 18 . 1 Failed 14 | . 5 1 8 . . Catastrophic . | . . . . . . Database Lockouts 1 | . 1 . . . . Manual 26 | . 10 2 13 . 1 Terminals 21 | . 7 2 12 . . Fabricators . | . . . . . . Repair Stations 9 | . 3 . 6 . . Recycling Units 1 | . . . 1 . . Scanalyzers 7 | . . . 7 . . Garrison Access . | . . . . . . Terminal Hacks 10 | . 2 1 6 . 1 Part Schematic 4 | . . . 4 . . Robot Analysis 2 | . 2 . . . . Prototype ID Bank 2 | . . . 2 . . Branch Access Points 1 | . . 1 . . . Derelict Proto ID Bank 1 | . . . . . 1 Fabricator Hacks . | . . . . . . Repair Station Hacks 8 | . 2 . 6 . . Scan Component 4 | . 1 . 3 . . Repair 4 | . 1 . 3 . . Recycling Unit Hacks 1 | . . . 1 . . Retrieve Components 1 | . . . 1 . . Scanalyzer 5 | . . . 5 . . Insert Component 3 | . . . 3 . . Analyze 2 | . . . 2 . . Garrison Access Hacks . | . . . . . . Unauthorized Hacks . | . . . . . . Terminals . | . . . . . . Fabricators . | . . . . . . Repair Stations . | . . . . . . Recycling Units . | . . . . . . Scanalyzers . | . . . . . . Garrison Access . | . . . . . . Data Cores Recovered . | . . . . . . Used . | . . . . . . Hacking Detections 10 | . 3 1 6 . . Full Trace Events 2 | . . . 2 . . Feedback Events . | . . . . . . Feedback Blocked . | . . . . . . Robot Schematics Acquired . | . . . . . . Robots Built . | . . . . . . Authchips . | . . . . . . Time . | . . . . . . Total Robot Build Rating . | . . . . . . Part Schematics Acquired 6 | . . . 6 . . Parts Built . | . . . . . . Authchips . | . . . . . . Time . | . . . . . . Total Part Build Rating . | . . . . . . Parts Repaired 4 | . 1 . 3 . . Time 136 | . 36 . 100 . . Parts Recycled . | . . . . . . Recycled Matter . | . . . . . . Retrieved Matter . | . . . . . . Retrieved Components 9 | . . . 9 . . Parts Scanalyzed 3 | . . . 3 . . Part Schematics Acquired 2 | . . . 2 . . Parts Damaged 1 | . . . 1 . . Bothacking | -11 -10 -10 -9 -9 -9 ------------ Run | Yrd Mat Min Mat Min Exi Used RIF Installer . | . . . . . . Robots Hacked . | . . . . . . Non-combat . | . . . . . . Combat . | . . . . . . Robot Hacks Applied . | . . . . . . Relay Couplers Released . | . . . . . . Fabnet Peak Effective % . | . . . . . . Robots Rewired . | . . . . . . Allies Hacked . | . . . . . . Hacks Repelled . | . . . . . . Allies | -11 -10 -10 -9 -9 -9 -------- Run | Yrd Mat Min Mat Min Exi Total Allies 3 | . . 3 . . . Largest Group 3 | . . 3 1 . . Highest-Rated Group 76 | . . 76 31 . . Highest-Rated Ally 31 | . . 31 31 . . Total Orders . | . . . . . . Ally Attacks 13 | . . 1 12 . . Total Damage 139 | . . . 139 . . Kills 3 | . . . 3 . . Allies Corrupted . | . . . . . . Allies Melted . | . . . . . . Intel | -11 -10 -10 -9 -9 -9 ------- Run | Yrd Mat Min Mat Min Exi Robot Analysis Total 2 | . 2 . . . . Derelict Logs Recovered 4 | . . 2 . 2 . Drone Launches . | . . . . . . Drone Recoveries . | . . . . . . Exploration | -11 -10 -10 -9 -9 -9 ------------- Run | Yrd Mat Min Mat Min Exi Turns Passed 9356 | 121 2145 2684 3142 475 789 Spaces Moved 3983 | 81 1118 1179 1129 185 291 Core 3 | 3 . . . . . Treads 3 | . 1 . 1 1 . Legs . | . . . . . . Wheels 3977 | 78 1117 1179 1128 184 291 Hover . | . . . . . . Flight . | . . . . . . Fastest Speed 50 | 50 80 215 215 230 215 Average Speed 199 | 94 162 215 215 231 229 Slowest Speed 560 | 250 480 215 560 560 230 Overloaded Moves . | . . . . . . Propulsion Burnouts . | . . . . . . Robots Hopped . | . . . . . . Cave-ins Triggered . | . . . . . . Exploration Rate (%) 58 | 4 95 100 69 37 43 Regions Visited 5 Branch Regions 3 Pre-discovered Areas 2 | . . 1 . 1 . Known Exits Taken . | . . . . . . Unknown Exits Taken 5 | 1 1 1 1 1 . Scrap Searched 1 | . . 1 . . . Spaces Dug 20 | . . 20 . . . Terrain Destroyed 64 | . 23 20 . . 21 Melee 20 | . . 20 . . . Projectile . | . . . . . . AOE 44 | . 23 . . . 21 Terrain Rammed . | . . . . . . Walls Destroyed . | . . . . . . Machines Disabled . | . . . . . . Actions | -11 -10 -10 -9 -9 -9 --------- Run | Yrd Mat Min Mat Min Exi Total 4993 | 107 1339 1290 1683 210 364 Wait 603 | . 112 76 382 4 29 Move 3978 | 80 1117 1178 1128 184 291 Hop . | . . . . . . Pick Up 64 | 9 27 2 21 2 3 Fast Attach 13 | 6 4 . 3 . . Attach 17 | 1 1 . 8 . 7 Detach 1 | . . . . . 1 Swap 39 | 3 8 1 23 3 1 Drop 48 | 1 14 2 25 2 4 Fire 207 | 7 56 8 93 15 28 Melee 22 | . . 22 . . . Ram 1 | . . 1 . . . Kick . | . . . . . . Crush . | . . . . . . Escape Stasis . | . . . . . . Rewire . | . . . . . . Trap . | . . . . . . Miscellaneous . | . . . . . . Route ------- -11/Scrapyard -10/Materials (discovered 5 exits: *Mat x3 / *Min x2) -10/Mines (discovered 3 exits: *Mat x2 / [*Sub]) -9/Materials (discovered 3 exits: [*Mat] / [*Min] / [*Sto]) -9/Mines (discovered 2 exits: [*Mat] / *Exi) -9/Exiles History --------- Turn | Location | Event 13 | -11/Scrapyard | Discovered new exit (range 16) 122 | -11/Scrapyard | Entered Materials 310 | -10/Materials | Build established: Mutant 569 | -10/Materials | Discovered new exit (range 12) 689 | -10/Materials | Discovered new exit (range 16) 967 | -10/Materials | Central database locked down 981 | -10/Materials | Discovered new exit (range 12) 1560 | -10/Materials | Discovered new exit (range 13) 1688 | -10/Materials | Discovered new exit (range 5) 2169 | -10/Materials | Repaired Broken Lgt. Treads 2267 | -10/Materials | Entered Mines 2304 | -10/Mines | Learned Materials stockpile data 2560 | -10/Mines | A weapon hastily lodged in a ceiling crevice suddenly fell to the ground 2612 | -10/Mines | Discovered new exit (range 8) 2615 | -10/Mines | Assembled infested the area 3154 | -10/Mines | Discovered new exit (range 8) 3255 | -10/Mines | Received a Mining Laser from a helpful Derelict 3462 | -10/Mines | Learned location of Zion (-6) 3787 | -10/Mines | Discovered new exit (range 10) 4951 | -10/Mines | Entered Materials 4951 | -9/Materials | Accompanied by 1 ally 4951 | -9/Materials | Evolved 2 slots: Utility x2 4956 | -9/Materials | Led the pair of lost Derelicts to an unsafe place 5322 | -9/Materials | Discovered new exit (range 15) 5637 | -9/Materials | Discovered new exit (range 3) 5779 | -9/Materials | Build established: Scavenger-Mutant 6106 | -9/Materials | Discovered new exit (range 11) 6282 | -9/Materials | Build established: Mutant 6940 | -9/Materials | Destroyed 8 combat bots 7191 | -9/Materials | Repaired Broken ECM Suite 7224 | -9/Materials | Repaired Autogun 7258 | -9/Materials | Repaired Autogun 7328 | -9/Materials | Core integrity fell below 50% 8093 | -9/Materials | Entered Mines 8338 | -9/Mines | Learned location of Recycling (-9) 8388 | -9/Mines | Discovered new exit (range 4) 8525 | -9/Mines | Learned Materials stockpile data 8559 | -9/Mines | Deemed a non-threat by the Exiles lab entrance 8559 | -9/Mines | Discovered new exit (range 5) 8568 | -9/Mines | Entered Exiles 8621 | -9/Exiles | Met 8R-AWN 8665 | -9/Exiles | Met EX-HEX 8739 | -9/Exiles | Met EX-BIN 8766 | -9/Exiles | Aligned with FarCom system 8769 | -9/Exiles | Given EX-Vault access code 8824 | -9/Exiles | Opened EX-Vault 8845 | -9/Exiles | Found Field Lobotomy Kit 8892 | -9/Exiles | Warned to stay clear of 0b10 Research branches 8918 | -9/Exiles | Exiles lab attacked by MAIN.C 9107 | -9/Exiles | Found Gui. Plasma Cannon 9114 | -9/Exiles | Found YOLO Cannon 9261 | -9/Exiles | Core integrity fell below 20% 9301 | -9/Exiles | Lost 7 parts (1p2n2u2w) 9312 | -9/Exiles | Destroyed 15 combat bots 9357 | -9/Exiles | Destroyed by H-55 Commando with Assault Rifle Last Messages --------------- 09270_ Wheel destroyed. 09272_ Penetrated by Slug. 09274_ Destroyed Assault Rifle. 09274_ H-55 Commando destroyed. 09275_ Penetrated by Slug. 09280_ H-55 Commando destroyed. 09285_ Destroyed Shock Rifle. 09285_ P-60 Hacker suffers critical hit (Meltdown). 09285_ Mic. Nuclear Core melted. 09285_ Gravmag System melted. 09291_ Destroyed Lgt. Armor Plating. 09291_ B-36 Bruiser suffers critical hit (Meltdown). 09291_ Hammer melted. 09293_ System corrupted: Matter fused (-5). 09345_ System corrupted: Heat flow error (+213). 09346_ Destroyed Aluminum Leg. 09346_ Destroyed Heat Sink. 09346_ Destroyed Ion Engine. 09350_ G-34 Mercenary destroyed. 09356_ Penetrated by Slug. Map ----- +----------------------------------------------------+ | ???????????????????## #??????????????????????? | | ????????????????????# #??????????????????????? | | ????????????????????# #???###????????????????? | | ????????????????????# #??"""""???????????????? | | ????????????????????# ## """???????????????? | | ????????????????????# X""???????????????? | | ????????????????????# ## """???????????????? | | ?????????????#####??# #??"""""???????????????? | | ?????????????""""""?# #???###????????????????? | | ?????????????"""" ## #??????????????????????? | | ????????????#""X" #??????????????????????? | | ????????????#" #??????????????????????? | | ????????????#" ## #??????????????????????? | | ????????????#""""""?# #?#########????????????? | | ????????????##"###??# #?#"""""""#????????????? | | ????????????? ??????# #?#"""""""#????????????? | | ????????????????????# #?#"""""""#????????????? | | ???????????????????## ### " """"#????????????? | | ???????????????????#" """"#????????????? | | ???????????????????#" """#????????????? | | ???????????????????#" """#????????????? | | ???????????????????# """#????????????? | | ???????????????????#" """#????????????? | | ???????????????????#" """##???????????? | | ???????????????????## """""???????????? | | ????????????????????# @ """#####????????? | | ????????????????????# "X" """"" #???????? | | ????????????????????# """ # "??????????? | | ????????????????????#" """"""""#????????????? | | ???????????????????#; ;;#########????????????? | | ??????????????????# #???????????????????? | | ?????????????#####; = #??????????????????? | | ????????????##"""" #??????????????????? | | ??????????"""""" " % #?###########??????? | | ?????? ? "" """ [ [g ;###"""""""""##?????? | | ????? " " %= h " """ """"##????? | | ????? "" " #????? | | ??? " """#????? | | ???? *%[ " "#????? | | ???? = g g " "##???? | | ????? ! |h= b ""###?? | | ????? """""" """#?? | | ????? ######""" "#?? | | ?????? ""#?????#####""" ##? | | ?????? """#??????????##""" ## | | ??????? """#????????????#"""" # | | ??????? ????????????????#"" | | ????????? ?????????????????"""" | | ??????????????????????????? | | ?????????????????????????? | +----------------------------------------------------+ Best States ------------- Heat Dissipation 50 Energy Generation 14 Energy Capacity 280 Matter Stores 300 Matter Capacity 300 Sight Range 16 Terrain Scan Range 16 Terrain Scan Density 10 Armor Coverage 225 Resistance: KI 20 Resistance: TH 20 Resistance: EX 20 Resistance: EM 20 Resistance: I 20 Resistance: S 20 Resistance: P 20 Core Shielding 20 Evasion (%) 42 Targeting Accuracy 16 Recoil Reduction 1 Offensive Hacking 10 Item Schematics ----------------- Autogun | -9/Materials | Scanalyzed Med. Armor Plating | -9/Materials | Scanalyzed ECM Suite | -9/Materials | Hacked Utility Shielding | -9/Materials | Hacked Rocket Launcher | -9/Materials | Hacked VTOL Module | -9/Materials | Hacked Robot Schematics ------------------ None Fabricated ------------ Nothing Alien Tech Used ----------------- None Achievements -------------- None Challenges ------------ None Game ------ Seed HeavyTractorArray Manual? 0 Play Time 00:57:17 Cumulative 22.9 hours Start 2024.05.28 @ 16:47:40 End 2024.05.28 @ 17:46:21 Sessions 1 Manual Loads 0 Difficulty Adventurer Special Mode None Game No. 11 Rogue 0 Adventurer 11 Explorer 0 Win Type - Total 0 Types 0/0/0/0/0/0/0/0/0 Lore% 20 Gallery% 30 Achievement% 27 Wizard Run 0 Options --------- Layout 2 ASCII 0 Keyboard 0 Movement Numpad Keybinds 0 Fullscreen 2 Font 16/SmallcapsGlow Map View 55x47 Zoom Use 0% Tactical HUD 1 Map Filters NONE Filters NONE Steam 0 RUN: 8e2edfeb-a7e7-4281-909b-66666b0e1633